bitfinex-derivatives/quotes_ETHF0:USTF0_20210110
["timestamp","ask_amount","ask_price","bid_price","bid_amount"]
[1610304679083,18.24380064,1282.3,1281.9,10.0]
[1610304679283,18.24380064,1282.3,1281.9,40.0]
[1610304679484,18.24380064,1282.3,1282.2,4.00959]
[1610304679682,18.24380064,1282.3,1282.2,34.00959]
[1610304679884,4.00959,1282.9,1282.2,34.00959]
[1610304679885,18.24911754,1282.5,1282.2,34.00959]
[1610304680084,18.24792206,1282.6,1282.2,44.00959]
[1610304680484,18.24792206,1282.6,1282.3,10.0]
[1610304680884,4.00959,1282.9,1282.3,10.0]
[1610304680885,18.2619281,1282.7,1282.3,10.0]
[1610304681085,18.2619281,1282.7,1282.4,10.0]
[1610304681285,3.09562697,1282.5,1282.4,11.8685]
[1610304681489,3.09562697,1282.5,1282.4,5.87809]
[1610304681884,3.09562697,1282.5,1282.4,15.87809]
[1610304682785,3.21706863,1282.8,1282.4,15.87809]
[1610304682986,21.52468203,1282.8,1282.4,15.87809]
[1610304683186,21.52468203,1282.8,1282.5,10.0]
[1610304683386,18.30926744,1282.7,1282.5,10.0]
[1610304683586,22.31885744,1282.7,1282.6,10.0]
[1610304684087,4.00959,1282.7,1282.5,10.0]
[1610304684486,4.00959,1282.7,1282.2,10.0]
[1610304684687,18.29902426,1282.4,1282.3,10.0]
[1610304684987,4.00959,1282.7,1282.2,10.0]
[1610304685388,4.00959,1282.7,1281.9,10.0]
[1610304685587,4.00959,1282.0,1281.9,10.0]
[1610304685787,4.00959,1282.0,1281.8,1.9945]
[1610304685988,4.00959,1282.0,1281.4,57.8858]
[1610304685989,22.29713123,1282.0,1281.4,57.8858]
[1610304686290,4.00959,1282.0,1281.9,10.0]
[1610304686691,4.00959,1282.0,1281.5,12.3704]
[1610304686890,4.00959,1282.0,1281.5,2.3704]
[1610304687090,4.00959,1282.0,1281.6,10.0]
[1610304687490,4.00959,1282.0,1281.9,4.00959]
[1610304687689,4.00959,1282.0,1281.7,10.0]
[1610304687890,4.00959,1282.0,1281.9,10.0]
[1610304688090,22.30249861,1282.0,1281.8,10.0]
[1610304688490,4.00959,1282.0,1281.9,10.0]
[1610304688690,4.00959,1282.0,1281.6,10.0]
[1610304689091,18.25604082,1281.8,1281.7,10.0]
[1610304689491,4.00959,1281.8,1281.7,10.0]
[1610304689691,4.00959,1281.8,1281.6,10.0]
[1610304690091,4.00959,1281.8,1281.7,10.0]
[1610304690491,4.00959,1281.8,1281.3,10.0]
[1610304690891,4.00959,1281.8,1281.4,10.0]
[1610304691492,4.00959,1281.5,1281.3,10.0]
[1610304691693,4.00959,1281.5,1280.9,1.7467]
[1610304691893,4.00959,1281.5,1281.3,10.0]
[1610304692292,4.00959,1281.5,1280.9,1.7467]
[1610304692293,4.00959,1281.5,1281.0,10.0]
[1610304692693,4.00959,1281.5,1281.1,10.0]
[1610304693094,4.00959,1281.5,1281.2,10.0]
[1610304693493,4.00959,1281.5,1280.9,1.7467]
[1610304693494,18.2049599,1281.1,1281.0,10.0]
[1610304693896,18.20937837,1281.2,1280.9,1.7467]
[1610304694100,18.20937837,1281.2,1281.0,10.0]
[1610304694299,22.21173192,1281.3,1281.0,10.0]
[1610304694498,4.00959,1281.3,1281.1,10.0]
[1610304694896,4.00959,1281.3,1281.0,10.0]
[1610304695297,18.1708685,1281.2,1281.1,10.0]
[1610304695697,4.00959,1281.3,1281.1,10.0]
[1610304695898,4.00959,1281.3,1281.0,10.0]
[1610304696097,4.00959,1281.3,1281.1,10.0]
[1610304696500,4.00959,1281.3,1281.1,2.422]
[1610304696699,4.00959,1281.3,1281.2,10.0]
[1610304697301,51.60529,1281.3,1281.2,10.0]
[1610304699100,69.78870807,1281.3,1281.2,10.0]
[1610304699401,51.60529,1281.3,1281.2,10.0]
[1610304699601,51.60529,1281.3,1281.2,14.00959]
[1610304699801,47.5957,1281.3,1281.2,14.00959]
[1610304700401,47.5957,1281.3,1281.2,44.00959]
[1610304701401,18.2640385,1281.9,1281.2,44.00959]
[1610304701601,18.28446877,1282.2,1281.8,4.00959]
[1610304701802,22.29348582,1282.3,1281.7,2.1202]
[1610304702002,22.29348582,1282.3,1281.9,10.0]
[1610304702206,18.27103537,1282.1,1281.9,10.0]
[1610304702402,18.27103537,1282.1,1282.0,10.0]
[1610304702604,18.27103537,1282.1,1281.8,10.0]
[1610304702802,4.00959,1282.3,1281.8,10.0]
[1610304703003,4.00959,1282.3,1282.0,10.0]
[1610304703403,4.00959,1282.3,1281.9,10.0]
[1610304703804,2.18984706,1282.2,1282.0,10.0]
[1610304704206,2.18984706,1282.2,1281.8,10.0]
[1610304704405,2.18984706,1282.2,1281.7,2.1202]
[1610304704604,2.18984706,1282.2,1282.1,10.0]
[1610304704806,2.18984706,1282.2,1281.9,10.0]
[1610304705005,2.18984706,1282.2,1281.4,2.0518]
[1610304705206,2.18984706,1282.2,1281.8,10.0]
[1610304705405,2.18984706,1282.2,1282.0,10.0]
[1610304705607,4.00959,1282.1,1282.0,10.0]
[1610304705806,4.00959,1282.1,1281.9,10.0]
[1610304706206,4.00959,1282.1,1281.5,10.0]
[1610304706609,4.00959,1282.1,1282.0,10.0]
[1610304706809,6.25909858,1282.1,1282.0,10.0]
[1610304707007,6.25909858,1282.1,1281.5,10.0]
[1610304707209,6.25909858,1282.1,1281.4,2.0518]
[1610304707410,6.25909858,1282.1,1282.0,10.0]
[1610304708008,6.25909858,1282.1,1282.0,5.2782]
[1610304708407,6.25909858,1282.1,1282.0,3.7513]
[1610304708609,6.25909858,1282.1,1282.0,0.5975]
[1610304708809,6.25909858,1282.1,1282.0,0.2526]
[1610304709409,6.25909858,1282.1,1281.8,10.0]
[1610304709610,4.00959,1281.9,1281.2,10.0]
[1610304709808,8.02499,1281.9,1281.2,10.0]
[1610304710010,8.02499,1281.9,1281.3,10.0]
[1610304710209,19.14546548,1281.6,1281.3,10.0]
[1610304710408,21.26206548,1281.6,1281.2,10.0]
[1610304710609,2.1166,1281.6,1281.2,10.0]
[1610304711010,2.1166,1281.6,1281.3,10.0]
[1610304711410,2.1166,1281.6,1281.1,2.422]
[1610304711411,2.1166,1281.6,1281.2,10.0]
[1610304711612,4.00959,1281.4,1281.2,10.0]
[1610304711814,4.00959,1281.4,1281.3,10.0]
[1610304712212,4.00959,1281.4,1281.2,12.1641]
[1610304712412,4.00959,1281.4,1281.2,2.1641]
[1610304712613,4.00959,1281.4,1281.3,10.0]
[1610304713815,18.28819332,1281.6,1281.3,10.0]
[1610304714019,18.29784187,1281.5,1281.4,10.0]
[1610304714216,18.30220945,1281.6,1281.4,10.0]
[1610304714419,18.30220945,1281.6,1281.3,10.0]
[1610304714617,20.9650912,1282.3,1281.3,10.0]
[1610304714618,18.31479767,1281.7,1281.3,10.0]
[1610304714917,18.31521938,1281.8,1281.5,10.0]
[1610304715119,18.31521938,1281.8,1281.5,1.7958]
[1610304715318,18.31070736,1281.7,1281.5,1.7958]
[1610304715718,22.32029736,1281.7,1281.6,10.0]
[1610304716520,24.79472498,1281.7,1281.6,10.0]
[1610304716721,6.48401762,1281.7,1281.6,10.0]
[1610304718824,6.48401762,1281.7,1281.6,8.9607]
[1610304719425,25.5896813,1281.7,1281.6,7.7977]
[1610304719828,6.48401762,1281.7,1281.5,10.0]
[1610304720128,8.54611762,1281.7,1281.2,10.0]
[1610304720528,8.54611762,1281.7,1281.3,10.0]
[1610304720730,19.09404927,1281.6,1281.3,10.0]
[1610304720930,19.09404927,1281.6,1281.2,10.0]
[1610304721131,8.54611762,1281.7,1281.2,10.0]
[1610304721332,8.54611762,1281.7,1281.4,10.0]
[1610304721731,8.54611762,1281.7,1281.2,10.0]
[1610304721732,4.00959,1281.5,1281.2,10.0]
[1610304721931,20.70753097,1281.6,1281.2,10.0]
[1610304722132,20.70753097,1281.6,1281.3,10.0]
[1610304722332,2.47470527,1281.6,1281.3,10.0]
[1610304722531,2.47470527,1281.6,1281.4,10.0]
[1610304722931,2.47470527,1281.6,1281.2,1.6157]
[1610304722932,2.47470527,1281.6,1281.3,10.0]
[1610304723132,2.47470527,1281.6,1281.3,11.5643]
[1610304723332,2.47470527,1281.6,1281.5,12.4818]
[1610304723733,18.27362664,1282.0,1281.5,16.49139]
[1610304723932,18.28325216,1282.1,1281.6,10.0]
[1610304724134,18.28325216,1282.1,1281.7,10.0]
[1610304724333,18.31780801,1282.2,1281.7,11.5764]
[1610304724533,18.31780801,1282.2,1281.8,10.0]
[1610304724932,18.31780801,1282.2,1281.9,10.0]
[1610304725334,69.06376709,1282.3,1282.0,10.0]
[1610304725533,22.35916709,1282.3,1282.0,10.0]
[1610304725733,22.35916709,1282.3,1281.9,10.0]
[1610304725934,22.35916709,1282.3,1281.8,1.5387]
[1610304726335,22.35916709,1282.3,1282.0,10.0]
[1610304726735,4.00959,1282.3,1282.0,10.0]
[1610304726935,19.24008461,1282.9,1281.8,1.5387]
[1610304727134,19.24008461,1282.9,1282.1,10.0]
[1610304727535,19.24008461,1282.9,1282.0,10.0]
[1610304727736,4.00959,1282.6,1282.0,4.00959]
[1610304727939,4.00959,1282.6,1282.2,10.0]
[1610304728136,4.00959,1282.6,1282.1,10.0]
[1610304728338,4.00959,1282.6,1282.2,2.3707]
[1610304728537,4.00959,1282.6,1282.3,10.0]
[1610304728939,4.00959,1282.6,1282.4,10.0]
[1610304729339,2.4719345,1282.5,1282.3,10.0]
[1610304729739,4.00959,1282.4,1282.2,2.3707]
[1610304730143,4.00959,1282.4,1282.3,10.0]
[1610304731944,6.54271418,1282.4,1282.3,10.0]
[1610304733344,25.81236374,1282.4,1282.3,10.0]
[1610304733945,6.54271418,1282.4,1282.3,10.0]
[1610304734345,25.80610847,1282.4,1282.3,10.0]
[1610304734944,34.69020847,1282.4,1282.3,10.0]
[1610304735144,25.80610847,1282.4,1282.3,10.0]
[1610304735545,6.54271418,1282.4,1282.3,9.7236]
[1610304736946,8.08411418,1282.4,1282.3,9.7236]
[1610304737148,6.54271418,1282.4,1282.3,9.7236]
[1610304737347,8.61591418,1282.4,1282.3,9.7236]
[1610304739851,27.97201657,1282.4,1282.3,9.7236]
[1610304740653,8.61591418,1282.4,1282.3,9.7236]
[1610304744953,6.54271418,1282.4,1282.3,9.7236]
[1610304747157,8.37621418,1282.4,1282.3,9.7236]
[1610304747655,27.77134415,1282.4,1282.3,9.7236]
[1610304749055,8.37621418,1282.4,1282.3,9.7236]
[1610304750155,27.82884892,1282.4,1282.3,9.7236]
[1610304750656,8.37621418,1282.4,1282.3,9.7236]
[1610304757965,8.37621418,1282.4,1282.3,13.73319]
[1610304759167,8.37621418,1282.4,1282.3,9.7236]
[1610304762778,4.36662418,1282.4,1282.3,9.7236]
[1610304763174,2.53312418,1282.4,1282.3,9.7236]
[1610304764376,2.45762257,1282.7,1282.3,39.7236]
[1610304764576,2.45762257,1282.7,1282.4,10.0]
[1610304764978,2.45762257,1282.7,1282.5,10.0]
[1610304765380,2.45762257,1282.7,1282.5,1.9824]
[1610304765578,18.70235243,1282.6,1282.5,1.9824]
[1610304766084,22.71194243,1282.6,1282.5,11.9824]
[1610304766284,4.00959,1282.6,1282.5,11.9824]
[1610304767385,6.46736701,1282.6,1282.5,11.9824]
[1610304771791,6.46736701,1282.6,1282.5,8.8724]
[1610304772192,6.46736701,1282.6,1282.5,6.9323]
[1610304772393,26.51746262,1282.6,1282.5,5.0652]
[1610304772593,6.46736701,1282.6,1282.5,0.657]
[1610304772793,36.46736701,1282.6,1281.1,53.9161]
[1610304773193,36.46736701,1282.6,1281.4,10.0]
[1610304773393,19.57722896,1281.6,1281.2,10.0]
[1610304773794,19.57778587,1281.5,1281.3,8.3737]
[1610304773995,23.58439525,1281.4,1281.2,10.0]
[1610304774196,25.86769525,1281.4,1281.2,9.0507]
[1610304774395,6.29289,1281.4,1281.3,10.0]
[1610304774596,25.87166181,1281.4,1281.3,10.0]
[1610304774795,25.87166181,1281.4,1281.2,10.0]
[1610304775194,25.87166181,1281.4,1281.3,10.0]
[1610304775795,2.68172722,1281.3,1281.2,10.0]
[1610304776396,2.68172722,1281.3,1281.1,53.9161]
[1610304776595,2.68172722,1281.3,1281.2,10.0]
[1610304777395,22.25815907,1281.3,1281.2,10.0]
[1610304777795,22.25815907,1281.3,1281.1,53.9161]
[1610304777796,2.68172722,1281.3,1281.1,63.9161]
[1610304777996,23.5630507,1281.2,1281.1,63.9161]
[1610304778398,4.00959,1281.2,1281.1,63.9161]
[1610304779202,5.58539,1281.2,1281.1,63.9161]
[1610304780101,8.26814237,1281.2,1281.1,63.9161]
[1610304781104,6.69234237,1281.2,1281.1,63.9161]
[1610304781503,26.26541869,1281.2,1281.1,63.9161]
[1610304782003,27.80741869,1281.2,1281.1,10.0]
[1610304782405,8.23434237,1281.2,1281.1,10.0]
[1610304782806,27.79675495,1281.2,1281.1,10.0]
[1610304783207,8.23434237,1281.2,1281.1,10.0]
[1610304783707,6.69234237,1281.2,1281.1,10.0]
[1610304784808,8.26704237,1281.2,1281.1,10.0]
[1610304786012,6.69234237,1281.2,1281.1,10.0]
[1610304789415,26.28266762,1281.2,1281.1,10.0]
[1610304790017,6.69234237,1281.2,1281.1,10.0]
[1610304790419,8.24574237,1281.2,1281.1,10.0]
[1610304791618,27.85803881,1281.2,1281.1,10.0]
[1610304792018,26.30463881,1281.2,1281.1,10.0]
[1610304792622,6.69234237,1281.2,1281.1,10.0]
[1610304793622,1.11304237,1281.2,1281.1,10.0]
[1610304794022,1.11304237,1281.2,1281.1,14.00959]
[1610304794222,21.88246393,1281.7,1281.1,14.00959]
[1610304794422,18.37932387,1281.2,1281.1,4.00959]
[1610304794621,2.2319,1281.7,1281.1,4.00959]
[1610304794823,19.65167674,1282.0,1281.1,10.0]
[1610304795022,19.65167674,1282.0,1281.2,10.0]
[1610304795423,21.79037624,1281.8,1280.9,10.0]
[1610304795624,19.61984229,1281.7,1280.9,10.0]
[1610304795824,19.61984229,1281.7,1281.0,10.0]
[1610304796024,4.00959,1281.1,1281.0,10.0]
[1610304796225,4.00959,1281.1,1280.7,45.8414]
[1610304796226,4.00959,1281.1,1280.9,10.0]
[1610304796624,4.00959,1281.1,1280.8,10.0]
[1610304796824,4.00959,1281.1,1280.7,45.8414]
[1610304797024,4.00959,1281.1,1281.0,10.0]
[1610304797224,4.00959,1281.1,1280.8,10.0]
[1610304797425,4.00959,1281.1,1280.7,45.8414]
[1610304797624,4.00959,1281.1,1280.9,10.0]
[1610304798025,4.00959,1281.1,1280.8,10.0]
[1610304798225,4.00959,1281.1,1280.9,10.0]
[1610304798625,4.00959,1281.1,1280.8,10.0]
[1610304798826,4.00959,1281.1,1281.0,10.0]
[1610304799225,4.00959,1281.1,1280.9,10.0]
[1610304799425,4.00959,1281.1,1280.8,10.0]
[1610304799625,23.60786681,1281.1,1280.8,10.0]
[1610304800025,19.59827681,1281.1,1281.0,10.0]
[1610304800226,19.59827681,1281.1,1280.1,65.7739]
[1610304800429,19.59827681,1281.1,1280.1,64.2262]
[1610304800627,2.4181,1281.2,1280.2,10.0]
[1610304801027,2.4181,1281.2,1280.3,10.0]
[1610304801228,1.86633788,1281.1,1280.3,10.0]
[1610304801428,1.86633788,1281.1,1280.4,10.0]
[1610304801831,1.62053788,1281.1,1280.3,10.0]
[1610304802036,4.00959,1281.0,1280.8,4.00959]
[1610304802439,1.825,1281.5,1280.8,4.00959]
[1610304802639,1.79319148,1281.0,1280.8,4.00959]
[1610304802838,1.79319148,1281.0,1280.9,10.0]
[1610304803239,1.79319148,1281.0,1280.8,10.0]
[1610304803639,1.79319148,1281.0,1280.3,10.0]
[1610304804040,1.79319148,1281.0,1280.4,10.0]
[1610304804240,19.64206945,1281.2,1280.4,10.0]
[1610304804440,19.64206945,1281.2,1280.3,10.0]
[1610304804642,19.64206945,1281.2,1280.4,10.0]
[1610304804840,19.65957259,1281.1,1280.2,1.9946]
[1610304805240,21.48057259,1281.1,1280.3,10.0]
[1610304805643,23.31796674,1281.1,1280.4,10.0]
[1610304806044,4.00959,1280.5,1280.3,10.0]
[1610304806245,4.00959,1280.5,1280.0,10.0]
[1610304806644,4.00959,1280.5,1280.1,10.0]
[1610304807043,1.83814049,1280.4,1280.0,10.0]
[1610304807243,1.83814049,1280.4,1279.8,61.9882]
[1610304807447,1.83814049,1280.4,1280.1,10.0]
[1610304807643,1.83814049,1280.4,1280.0,10.0]
[1610304807844,1.83814049,1280.4,1279.8,61.9882]
[1610304808045,1.83814049,1280.4,1279.9,10.0]
[1610304808443,1.83814049,1280.4,1280.0,10.0]
[1610304808644,21.51862882,1280.4,1280.0,10.0]
[1610304808844,21.51862882,1280.4,1279.9,10.0]
[1610304809145,21.51862882,1280.4,1280.0,10.0]
[1610304809544,21.51862882,1280.4,1279.9,10.0]
[1610304809744,2.05749175,1280.3,1279.9,10.0]
[1610304809945,21.79976093,1280.3,1280.1,10.0]
[1610304810146,2.05749175,1280.3,1280.2,10.0]
[1610304810546,2.05749175,1280.3,1279.9,10.0]
[1610304810749,2.05749175,1280.3,1280.2,10.0]
[1610304810949,21.81153724,1280.3,1280.2,10.0]
[1610304811147,2.05749175,1280.3,1279.7,10.0]
[1610304811347,2.05749175,1280.3,1279.2,1.6901]
[1610304811548,19.72475142,1280.2,1279.2,1.6901]
[1610304811748,19.72475142,1280.2,1279.3,10.0]
[1610304812248,4.00959,1279.4,1279.2,1.6901]
[1610304812648,4.00959,1279.4,1279.3,10.0]
[1610304813448,2.05776106,1280.1,1279.3,10.0]
[1610304814047,21.80043489,1280.4,1279.4,10.0]
[1610304814248,4.00959,1279.6,1279.4,10.0]
[1610304814448,4.00959,1279.6,1279.5,10.0]
[1610304814848,4.00959,1279.6,1279.4,10.0]
[1610304815049,2.0764,1280.4,1279.3,5.58599]
[1610304815249,2.0764,1280.4,1279.5,10.0]
[1610304815450,19.72817171,1280.7,1279.5,1.8192]
[1610304815649,21.26431799,1280.8,1279.5,1.8192]
[1610304815849,21.26431799,1280.8,1279.6,10.0]
[1610304816153,4.00959,1279.8,1279.7,10.0]
[1610304816549,4.00959,1279.8,1279.6,10.0]
[1610304816950,4.00959,1279.8,1279.7,10.0]
[1610304817354,4.00959,1279.8,1279.6,10.0]
[1610304817553,4.00959,1279.8,1279.7,10.0]
[1610304817952,4.00959,1279.8,1279.6,10.0]
[1610304818352,4.00959,1279.8,1279.7,10.0]
[1610304818754,4.00959,1279.8,1279.5,1.8192]
[1610304819054,4.00959,1279.8,1279.7,10.0]
[1610304819452,4.00959,1279.8,1279.6,10.0]
[1610304819453,4.00959,1279.8,1279.5,1.8192]
[1610304820053,4.00959,1279.8,1279.7,10.0]
[1610304820254,4.00959,1279.8,1279.6,10.0]
[1610304820453,4.00959,1279.8,1279.2,1.6901]
[1610304820654,4.00959,1279.8,1279.7,10.0]
[1610304820955,6.06516813,1279.8,1279.7,10.0]
[1610304821756,6.06516813,1279.8,1279.3,10.0]
[1610304821956,6.06516813,1279.8,1279.2,1.6901]
[1610304822158,2.05557813,1279.8,1279.4,10.0]
[1610304822357,2.05557813,1279.8,1279.3,10.0]
[1610304822558,2.70766477,1279.7,1279.3,10.0]
[1610304822761,2.70766477,1279.7,1278.6,53.4026]
[1610304822762,2.70766477,1279.7,1279.4,10.0]
[1610304823358,2.70766477,1279.7,1279.3,10.0]
[1610304823758,4.28606477,1279.7,1279.5,10.0]
[1610304824158,4.00959,1279.6,1279.5,10.0]
[1610304824358,4.00959,1279.6,1278.7,10.0]
[1610304824559,19.62369125,1279.2,1278.6,53.4026]
[1610304824759,2.226,1279.2,1278.8,10.0]
[1610304824959,2.226,1279.2,1278.7,10.0]
[1610304825159,2.7087675,1279.1,1278.7,10.0]
[1610304825358,2.7087675,1279.1,1278.9,10.0]
[1610304825963,2.7087675,1279.1,1278.8,10.0]
[1610304826160,4.00959,1278.9,1278.8,10.0]
[1610304826561,5.90709,1278.9,1278.6,53.4026]
[1610304826959,5.90709,1278.9,1278.7,10.0]
[1610304827359,7.46939,1278.9,1278.8,10.0]
[1610304827559,7.46939,1278.9,1278.7,10.0]
[1610304827960,5.90709,1278.9,1278.8,10.0]
[1610304828159,4.60680663,1278.9,1278.8,10.0]
[1610304828761,8.61639663,1278.9,1278.8,10.0]
[1610304830966,28.18502843,1278.9,1278.8,10.0]
[1610304831366,8.61639663,1278.9,1278.8,10.0]
[1610304831768,15.59789663,1278.9,1278.8,10.0]
[1610304833870,35.17373195,1278.9,1278.8,10.0]
[1610304834271,15.59789663,1278.9,1278.8,10.0]
[1610304835971,17.16479663,1278.9,1278.8,7.8725]
[1610304836170,15.59789663,1278.9,1278.8,5.9277]
[1610304836371,15.59789663,1278.9,1278.8,5.7903]
[1610304836571,35.62897287,1278.9,1278.8,6.3786]
[1610304836772,15.59789663,1278.9,1278.8,5.1854]
[1610304837172,15.59789663,1278.9,1278.8,3.9967]
[1610304837371,15.59789663,1278.9,1278.8,1.6474]
[1610304837571,15.59789663,1278.9,1278.8,11.6474]
[1610304837973,15.59789663,1278.9,1278.8,1.6474]
[1610304838171,15.59789663,1278.9,1278.8,0.0974]
[1610304838372,15.59789663,1278.9,1278.8,10.0974]
[1610304838572,8.61639663,1278.9,1278.8,10.0974]
[1610304840872,28.28818076,1278.9,1278.8,10.0974]
[1610304842377,8.61639663,1278.9,1278.8,10.0974]
[1610304846178,10.19949663,1278.9,1278.8,8.1493]
[1610304846677,10.19949663,1278.9,1278.8,1.8898]
[1610304846878,10.19949663,1278.9,1278.4,10.0]
[1610304847280,10.19949663,1278.9,1277.8,10.0]
[1610304847479,10.19949663,1278.9,1277.5,10.0]
[1610304847879,19.61760964,1278.0,1277.9,10.0]
[1610304848080,22.25250951,1278.5,1277.9,10.0]
[1610304848280,22.25250951,1278.5,1277.6,10.0]
[1610304848478,22.25250951,1278.5,1276.3,4.00959]
[1610304848679,19.56218833,1277.9,1277.7,10.0]
[1610304848878,4.00959,1277.8,1277.7,10.0]
[1610304849280,6.72184014,1277.8,1276.3,4.00959]
[1610304849483,6.72184014,1277.8,1277.7,10.0]
[1610304849878,6.72184014,1277.8,1277.2,10.0]
[1610304850078,6.72184014,1277.8,1277.7,10.0]
[1610304850879,4.00959,1277.8,1277.7,10.0]
[1610304852183,6.72088319,1277.8,1277.7,10.0]
[1610304853483,19.59746833,1278.3,1277.7,10.0]
[1610304853682,2.1808,1278.5,1277.8,10.0]
[1610304853683,18.68473064,1277.9,1277.8,10.0]
[1610304853883,13.88053064,1277.9,1277.8,10.0]
[1610304854084,2.1808,1278.5,1277.5,10.0]
[1610304854283,21.56166588,1278.9,1277.5,10.0]
[1610304854483,21.56166588,1278.9,1277.6,10.0]
[1610304854684,21.56166588,1278.9,1277.6,11.991]
[1610304854885,4.00959,1278.7,1278.1,4.00959]
[1610304855084,4.00959,1278.7,1278.1,5.58529]
[1610304855483,4.00959,1278.7,1278.2,10.0]
[1610304855984,4.00959,1278.7,1278.3,10.0]
[1610304856487,4.00959,1278.7,1278.2,10.0]
[1610304856686,6.12659,1278.7,1278.2,10.0]
[1610304856885,4.00959,1278.3,1278.1,4.00959]
[1610304857087,4.00959,1278.3,1278.2,10.0]
[1610304857685,1.98129,1278.4,1278.2,10.0]
[1610304858086,1.98129,1278.4,1278.3,10.0]
[1610304858385,1.68359,1278.4,1278.3,10.0]
[1610304858586,1.68359,1278.4,1278.2,10.0]
[1610304858786,1.68359,1278.4,1278.3,10.0]
[1610304859186,1.68359,1278.4,1278.2,11.5596]
[1610304859586,1.68359,1278.4,1278.3,10.0]
[1610304859786,2.117,1278.7,1278.3,10.0]
[1610304859987,21.96293852,1279.2,1278.3,10.0]
[1610304860186,21.96293852,1279.2,1278.4,10.0]
[1610304860588,21.96293852,1279.2,1278.3,10.0]
[1610304860788,4.00959,1278.8,1278.5,4.00959]
[1610304861188,4.00959,1278.8,1278.3,10.0]
[1610304861593,5.82009,1278.8,1278.5,10.0]
[1610304861990,5.82009,1278.8,1278.1,10.0]
[1610304862398,25.51656212,1278.8,1278.2,10.0]
[1610304862595,19.68965205,1278.7,1278.2,10.0]
[1610304862791,4.00959,1278.3,1278.1,10.0]
[1610304862991,4.00959,1278.3,1277.7,2.0139]
[1610304863192,4.00959,1278.3,1277.8,10.0]
[1610304863394,4.00959,1278.3,1278.2,10.0]
[1610304863594,4.00959,1278.3,1277.7,2.0139]
[1610304863996,4.00959,1278.3,1277.9,10.0]
[1610304864396,4.00959,1278.3,1277.7,2.0139]
[1610304864596,4.00959,1278.3,1277.9,10.0]
[1610304864797,4.00959,1278.0,1277.9,10.0]
[1610304864996,4.00959,1278.0,1277.8,10.0]
[1610304865201,4.00959,1278.0,1277.9,10.0]
[1610304865598,4.00959,1278.0,1277.8,10.0]
[1610304865798,5.96339,1278.0,1277.8,10.0]
[1610304865997,5.96339,1278.0,1277.0,1.761]
[1610304865998,5.96339,1278.0,1277.4,10.0]
[1610304866298,5.96339,1278.0,1277.9,10.0]
[1610304866701,5.96339,1278.0,1277.1,10.0]
[1610304866900,5.96339,1278.0,1277.3,4.00959]
[1610304867100,5.96339,1278.0,1277.9,10.0]
[1610304867499,5.96339,1278.0,1277.2,10.0]
[1610304867702,5.96339,1278.0,1277.0,1.761]
[1610304867902,5.96339,1278.0,1277.4,10.0]
[1610304868303,7.84829727,1278.0,1276.9,2.114]
[1610304868503,7.84829727,1278.0,1277.5,10.0]
[1610304868903,7.84829727,1278.0,1277.4,10.0]
[1610304868904,4.00959,1277.6,1277.4,10.0]
[1610304869104,4.00959,1277.6,1276.9,2.114]
[1610304869304,4.00959,1277.6,1277.5,10.0]
[1610304871104,5.89476264,1277.6,1277.5,10.0]
[1610304871706,4.00959,1277.6,1277.5,10.0]
[1610304872004,1.9538,1278.0,1277.5,10.0]
[1610304872204,19.64592936,1278.3,1277.5,10.0]
[1610304872404,19.64592936,1278.3,1277.6,10.0]
[1610304872805,19.64893719,1278.4,1277.1,10.0]
[1610304873006,5.63269,1278.1,1277.5,4.00959]
[1610304873205,1.6231,1278.1,1277.6,10.0]
[1610304873605,1.6231,1278.1,1277.7,10.0]
[1610304873904,1.88351811,1278.0,1277.7,10.0]
[1610304874204,1.88351811,1278.0,1277.6,10.0]
[1610304874404,1.88351811,1278.0,1277.5,5.58159]
[1610304874606,1.88351811,1278.0,1277.7,10.0]
[1610304874804,1.88351811,1278.0,1277.5,5.58159]
[1610304874805,1.88351811,1278.0,1277.6,10.0]
[1610304875005,1.88351811,1278.0,1277.8,4.00959]
[1610304875405,1.6231,1278.1,1277.8,4.00959]
[1610304875607,1.6231,1278.1,1277.9,10.0]
[1610304876006,1.6231,1278.1,1278.0,10.0]
[1610304876407,1.9403,1278.4,1277.9,10.0]
[1610304876808,1.9403,1278.4,1278.0,10.0]
[1610304877008,1.9403,1278.4,1278.2,4.00959]
[1610304877410,21.49955434,1278.8,1278.2,4.00959]
[1610304877608,21.49955434,1278.8,1278.3,10.0]
[1610304877808,19.72061364,1278.9,1278.3,10.0]
[1610304878008,20.7299388,1279.0,1278.4,10.0]
[1610304878209,1.88286911,1278.7,1278.4,10.0]
[1610304878608,1.88286911,1278.7,1278.3,10.0]
[1610304879007,1.88286911,1278.7,1278.6,4.00959]
[1610304879608,0.34239599,1278.8,1278.6,34.00959]
[1610304880010,0.34239599,1278.8,1278.6,44.00959]
[1610304880208,0.34239599,1278.8,1278.7,10.0]
[1610304880409,0.34239599,1278.8,1278.7,40.0]
[1610304880811,1.42752726,1278.9,1278.7,42.0767]
[1610304881210,1.42752726,1278.9,1278.8,10.0]
[1610304881410,1.42752726,1278.9,1278.8,40.0]
[1610304882514,1.0,1279.0,1278.8,40.0]
[1610304882714,1.0,1279.0,1278.8,10.0]
[1610304882914,1.0,1279.0,1278.9,14.00959]
[1610304883117,1.0,1279.0,1278.9,4.00959]